[Event "2nd Turkish League 2017"]
[Site "Konya"]
[Date "2017.07.21"]
[Round "7"]
[White "Yasin, Hur"]
[Black "Celikel, Fatih"]
[Result "0-1"]
[ECO "C02"]
[WhiteElo "2022"]
[BlackElo "1720"]
[Annotator "NA"]
[PlyCount "90"]
[EventType "team-tourn"]
[EventCountry "TUR"]
[SourceTitle "playchess.com"]
[Source "ChessBase"]
[SourceQuality "1"]
[TimeControl "5400+30"]

1. e4 {[%emt 0:00:30]} e6 {[%emt 0:02:00]} 2. d4 {[%emt 0:00:00]} d5 {[%emt 0:00:30]} 3. e5 {[%emt 0:00:00]} c5 {[%emt 0:00:30]} 4. c3 {[%emt 0:00:30]} Qb6 {[%emt 0:04:30]} 5. Nf3 {[%emt 0:01:30]} Bd7 {[%emt 0:00:30]} 6. a3 {[%emt 0:03:30]} a5 {[%emt 0:06:30]} 7. b3 $11 {[%emt 0:00:00] LiveBook: 31 Games} cxd4 {[%emt 0:04:30]} 8. cxd4 {[%emt 0:00:00]} Bb5 {[%emt 0:06:30]} 9. Bxb5+ {[%emt 0:00:30]} Qxb5 {[%emt 0:00:30]} 10. Nc3 {[%emt 0:00:30]} Qa6 {[%emt 0:00:00]} 11. Ne2 {[%emt 0:01:30]} Nd7 {[%emt 0:02:00]} 12. O-O {[%emt 0:00:30]} Ne7 {[%emt 0:02:30]} 13. Ne1 {[%emt 0:03:30]} a4 {[%emt 0:07:30]} 14. b4 {[%emt 0:00:30]} h5 {[%emt 0:05:30]} 15. Nd3 {[%emt 0:04:30]} Nf5 {[%emt 0:03:30]} 16. Nc5 {[%emt 0:01:30]} Qc6 {[%emt 0:04:30]} 17. b5 {[%emt 0:08:30]} Qxb5 {[%emt 0:02:30]} 18. Nxd7 {[%emt 0:04:30]} Qxd7 {[%emt 0:02:30]} 19. Rb1 {[%emt 0:00:30]} Rc8 {[%emt 0:02:30]} 20. Qd2 {[%emt 0:01:30]} Be7 {[%emt 0:01:30]} 21. Qb2 {[%emt 0:06:30]} Rc7 {[%emt 0:05:30]} 22. Bd2 {[%emt 0:03:30]} O-O {[%emt 0:02:30]} 23. Rfc1 {[%emt 0:09:30]} Rfc8 {[%emt 0:00:30]} 24. Rc3 {[%emt 0:03:30]} b5 {[%emt 0:04:30]} 25. Rxc7 {[%emt 0:07:30]} Rxc7 {[%emt 0:00:30]} 26. f3 {[%emt 0:00:30]} Rc4 {[%emt 0:01:30]} 27. g4 {[%emt 0:00:30]} hxg4 {[%emt 0:02:30]} 28. fxg4 {[%emt 0:00:30]} Nh4 {[%emt 0:01:30]} 29. Kf2 {[%emt 0:00:00]} Qc6 {[%emt 0:01:30]} 30. Bc3 {[%emt 0:02:00]} Ng6 {[%emt 0:01:30]} 31. Ke3 {[%emt 0:07:30]} Qa6 {[%emt 0:05:10]} 32. Be1 {[%emt 0:03:30]} Bg5+ {[%emt 0:00:30]} 33. Kf3 {[%emt 0:00:30]} Be7 {[%emt 0:01:13]} 34. Ke3 {[%emt 0:00:30]} b4 {[%emt 0:03:18]} 35. Bxb4 {[%emt 0:02:30]} Bxb4 {[%emt 0:00:21]} 36. axb4 {[%emt 0:00:30]} Qa7 {[%emt 0:00:29]} 37. Kd3 {[%emt 0:04:30]} a3 {[%emt 0:00:12]} 38. Qa1 {[%emt 0:01:30]} a2 {[%emt 0:02:59]} 39. Rb3 {[%emt 0:07:13]} Qa4 {[%emt 0:01:23]} 40. Rb2 {[%emt 0:00:22]} Qa3+ {[%emt 0:01:03]} 41. Kd2 {[%emt 0:00:10]} Nf4 {[%emt 0:01:39]} 42. Rxa2 {[%emt 0:05:27]} Qd3+ {[%emt 0:00:30]} 43. Ke1 {[%emt 0:00:02]} Qe3 {[%emt 0:00:56]} 44. Qb1 {[%emt 0:02:53]} g6 {[%emt 0:00:55]} 45. Kf1 {[%emt 0:06:42]} Qf3+ {[%emt 0:00:38]} 0-1

[Event "2nd Turkish League 2017"]
[Site "Konya"]
[Date "2017.07.21"]
[Round "7"]
[White "Alaz, Ahmet Efekan"]
[Black "Ilhan, Huseyin"]
[Result "1-0"]
[ECO "A48"]
[WhiteElo "2015"]
[BlackElo "1750"]
[Annotator "NA"]
[PlyCount "115"]
[EventType "team-tourn"]
[EventCountry "TUR"]
[SourceTitle "playchess.com"]
[Source "ChessBase"]
[SourceQuality "1"]
[TimeControl "5400+30"]

1. d4 {[%emt 0:00:30]} Nf6 {[%emt 0:01:00]} 2. Nf3 {[%emt 0:00:00]} g6 {[%emt 0:01:30]} 3. Bf4 {[%emt 0:00:00]} Bg7 {[%emt 0:00:30]} 4. e3 {[%emt 0:00:30]} d6 {[%emt 0:00:30]} 5. h3 {[%emt 0:00:00]} O-O {[%emt 0:00:30]} 6. Be2 {[%emt 0:00:00]} Nbd7 {[%emt 0:01:30]} 7. O-O {[%emt 0:00:00]} Re8 {[%emt 0:07:30]} 8. c3 {[%emt 0:02:00] LiveBook: 6 Games} c6 {[%emt 0:01:30]} 9. Nbd2 {[%emt 0:00:30]} e5 {[%emt 0:02:30]} 10. Bh2 $11 {[%emt 0:00:30]} Qe7 {[%emt 0:07:30]} 11. Nc4 {[%emt 0:12:30]} e4 {[%emt 0:05:30]} 12. Nfd2 {[%emt 0:06:30]} d5 {[%emt 0:00:30]} 13. Nd6 {[%emt 0:01:30]} Rd8 {[%emt 0:00:30]} 14. c4 {[%emt 0:00:30]} c5 {[%emt 0:11:30]} 15. Qb3 {[%emt 0:08:30]} cxd4 {[%emt 0:12:30]} 16. exd4 {[%emt 0:00:30]} Ne8 {[%emt 0:07:30]} 17. Nxb7 {[%emt 0:18:30]} Bxb7 {[%emt 0:01:30]} 18. Qxb7 {[%emt 0:00:00]} Bxd4 {[%emt 0:03:30]} 19. cxd5 {[%emt 0:09:00]} e3 {[%emt 0:07:30]} 20. Nf3 {[%emt 0:01:30]} exf2+ {[%emt 0:00:30]} 21. Kh1 {[%emt 0:00:30]} Bb6 {[%emt 0:03:30]} 22. Bb5 {[%emt 0:07:30]} Nd6 {[%emt 0:01:30]} 23. Qc6 {[%emt 0:05:30]} Nf6 {[%emt 0:03:04]} 24. Ba6 {[%emt 0:05:30]} Nfe4 {[%emt 0:11:46]} 25. g4 {[%emt 0:10:32]} Rab8 {[%emt 0:03:52]} 26. Kg2 {[%emt 0:03:41]} Nc5 {[%emt 0:01:11]} 27. Rxf2 {[%emt 0:05:32]} Nxa6 {[%emt 0:00:22]} 28. Re1 {[%emt 0:00:00]} Qd7 {[%emt 0:01:29]} 29. Qxd7 {[%emt 0:01:40]} Rxd7 {[%emt 0:00:30]} 30. Rfe2 {[%emt 0:00:00]} Rc8 {[%emt 0:01:52]} 31. Ne5 {[%emt 0:00:00]} Rdd8 {[%emt 0:00:39]} 32. Nc6 {[%emt 0:00:02]} Rxc6 {[%emt 0:01:14]} 33. dxc6 {[%emt 0:00:30]} Nc4 {[%emt 0:00:00]} 34. Re8+ {[%emt 0:01:23]} Rxe8 {[%emt 0:00:04]} 35. Rxe8+ {[%emt 0:00:30]} Kg7 {[%emt 0:00:30]} 36. b3 {[%emt 0:00:30]} Ne3+ {[%emt 0:00:30]} 37. Kf3 {[%emt 0:00:30]} Nd5 {[%emt 0:00:30]} 38. g5 {[%emt 0:01:16]} f5 {[%emt 0:00:00]} 39. Be5+ {[%emt 0:01:04]} Kf7 {[%emt 0:00:00]} 40. Rh8 {[%emt 0:00:00]} Ke6 {[%emt 0:00:00]} 41. Bg3 {[%emt 0:00:15]} Ne7 {[%emt 0:00:21]} 42. Rxh7 {[%emt 0:00:55]} Nxc6 {[%emt 0:00:06]} 43. Rg7 {[%emt 0:00:36]} Ne7 {[%emt 0:00:01]} 44. Be5 {[%emt 0:00:31]} Bc5 {[%emt 0:00:53]} 45. Bf6 {[%emt 0:00:17]} Nb4 {[%emt 0:01:50]} 46. Bxe7 {[%emt 0:00:30]} Bxe7 {[%emt 0:00:30]} 47. Rxg6+ {[%emt 0:00:30]} Kf7 {[%emt 0:00:00]} 48. Rh6 {[%emt 0:00:00]} Bxg5 {[%emt 0:00:57]} 49. Rh7+ {[%emt 0:00:00]} Ke6 {[%emt 0:00:46]} 50. Rxa7 {[%emt 0:00:00]} Nc6 {[%emt 0:00:03]} 51. Rb7 {[%emt 0:01:13]} Nd4+ {[%emt 0:00:25]} 52. Kf2 {[%emt 0:01:33]} Bh4+ {[%emt 0:00:11]} 53. Ke3 {[%emt 0:00:32]} Ke5 {[%emt 0:00:01]} 54. a4 {[%emt 0:00:41]} f4+ {[%emt 0:00:23]} 55. Kd3 {[%emt 0:00:06]} f3 {[%emt 0:00:21]} 56. Rf7 {[%emt 0:00:29]} Nf5 {[%emt 0:02:24]} 57. a5 {[%emt 0:00:33]} f2 {[%emt 0:01:45]} 58. Ke2 {[%emt 0:00:30]} 1-0

[Event "2nd Turkish League 2017"]
[Site "Konya"]
[Date "2017.07.21"]
[Round "7"]
[White "Okay, Ilkin Ege"]
[Black "Eke, Salih"]
[Result "1-0"]
[ECO "B33"]
[WhiteElo "1973"]
[BlackElo "1669"]
[Annotator "NA"]
[PlyCount "97"]
[EventType "team-tourn"]
[EventCountry "TUR"]
[SourceTitle "playchess.com"]
[Source "ChessBase"]
[SourceQuality "1"]
[TimeControl "5400+30"]

1. e4 {[%emt 0:00:30]} c5 {[%emt 0:01:00]} 2. Nf3 {[%emt 0:00:30]} Nc6 {[%emt 0:00:30]} 3. d4 {[%emt 0:00:30]} cxd4 {[%emt 0:00:30]} 4. Nxd4 {[%emt 0:00:30]} Nf6 {[%emt 0:00:00]} 5. Nc3 {[%emt 0:00:00]} e5 {[%emt 0:00:00]} 6. Ndb5 {[%emt 0:00:00]} d6 {[%emt 0:00:30]} 7. Bg5 {[%emt 0:00:00]} a6 {[%emt 0:00:00]} 8. Na3 {[%emt 0:00:00]} b5 {[%emt 0:00:00]} 9. Nd5 {[%emt 0:00:30]} Be7 {[%emt 0:00:30]} 10. Bxf6 {[%emt 0:00:30]} Bxf6 {[%emt 0:00:00]} 11. c4 {[%emt 0:03:30]} b4 {[%emt 0:01:00]} 12. Nc2 {[%emt 0:00:30]} a5 {[%emt 0:00:30]} 13. g3 {[%emt 0:00:30]} Bg5 {[%emt 0:00:30]} 14. h4 $11 {[%emt 0:08:30] LiveBook: 28 Games} Bh6 {[%emt 0:01:30]} 15. Qf3 {[%emt 0:08:30]} O-O {[%emt 0:00:30]} 16. g4 {[%emt 0:01:30]} f6 {[%emt 0:00:30]} 17. Rg1 {[%emt 0:06:30]} Be6 {[%emt 0:00:30]} 18. Rd1 {[%emt 0:00:30]} a4 {[%emt 0:09:30]} 19. Ndxb4 {[%emt 0:12:30]} Nxb4 {[%emt 0:02:30]} 20. Nxb4 {[%emt 0:02:30]} Qb6 {[%emt 0:00:30]} 21. Qc3 {[%emt 0:03:30]} Rab8 {[%emt 0:03:30]} 22. a3 {[%emt 0:01:30]} Rfc8 {[%emt 0:00:30]} 23. g5 {[%emt 0:02:30]} fxg5 {[%emt 0:04:30]} 24. hxg5 {[%emt 0:00:00]} Bxg5 {[%emt 0:06:30]} 25. Rxg5 {[%emt 0:00:00]} Rf8 {[%emt 0:00:30]} 26. Rd2 {[%emt 0:01:30]} Rf4 {[%emt 0:00:30]} 27. Qc2 {[%emt 0:06:30]} Rbf8 {[%emt 0:01:30]} 28. Rg3 {[%emt 0:00:00]} h5 {[%emt 0:01:30]} 29. Bh3 {[%emt 0:01:00]} Bf7 {[%emt 0:03:30]} 30. Nd5 {[%emt 0:00:30]} Bxd5 {[%emt 0:00:30]} 31. cxd5 {[%emt 0:00:00]} h4 {[%emt 0:02:30]} 32. Be6+ {[%emt 0:00:00]} Kh7 {[%emt 0:00:00]} 33. Rg4 {[%emt 0:02:30]} Rxg4 {[%emt 0:03:00]} 34. Bxg4 {[%emt 0:00:30]} Rf4 {[%emt 0:00:00]} 35. Bh3 {[%emt 0:02:30]} g5 {[%emt 0:03:00]} 36. Bf5+ {[%emt 0:00:30]} Kh6 {[%emt 0:00:00]} 37. Qc8 {[%emt 0:02:30]} Kg7 {[%emt 0:01:00]} 38. Qe6 {[%emt 0:00:30]} Qc5 {[%emt 0:00:30]} 39. Qe7+ {[%emt 0:03:30]} Kg8 {[%emt 0:00:30]} 40. Be6+ {[%emt 0:06:30]} Kh8 {[%emt 0:00:30]} 41. Qe8+ {[%emt 0:00:00]} Kg7 {[%emt 0:00:30]} 42. Qg8+ {[%emt 0:00:00]} Kh6 {[%emt 0:00:30]} 43. Bf5 {[%emt 0:00:30]} Rxf5 {[%emt 0:00:30]} 44. exf5 {[%emt 0:00:30]} Kh5 {[%emt 0:00:00]} 45. Qh7+ {[%emt 0:03:30]} Kg4 {[%emt 0:00:00]} 46. f6 {[%emt 0:00:30]} Qc1+ {[%emt 0:00:00]} 47. Rd1 {[%emt 0:00:30]} Qf4 {[%emt 0:00:00]} 48. Qd7+ {[%emt 0:04:40]} Kf3 {[%emt 0:00:30]} 49. Qh3+ {[%emt 0:00:20]} 1-0

[Event "2nd Turkish League 2017"]
[Site "Konya"]
[Date "2017.07.21"]
[Round "7"]
[White "Celik, Berkay"]
[Black "Ozgur, Isa"]
[Result "1-0"]
[ECO "B27"]
[WhiteElo "1963"]
[BlackElo "1904"]
[Annotator "NA"]
[PlyCount "87"]
[EventType "team-tourn"]
[EventCountry "TUR"]
[SourceTitle "playchess.com"]
[Source "ChessBase"]
[SourceQuality "1"]
[TimeControl "5400+30"]

1. e4 {[%emt 0:00:30]} c5 {[%emt 0:01:00]} 2. Nf3 {[%emt 0:00:30]} g6 {[%emt 0:00:30]} 3. d4 {[%emt 0:03:30]} cxd4 {[%emt 0:00:30]} 4. Qxd4 {[%emt 0:01:30]} Nf6 {[%emt 0:00:30]} 5. e5 {[%emt 0:05:30]} Nc6 {[%emt 0:00:30]} 6. Qf4 {[%emt 0:00:30]} Nd5 {[%emt 0:00:00]} 7. Qe4 {[%emt 0:00:30]} Nb6 {[%emt 0:00:00]} 8. Bg5 $15 {[%emt 0:04:30]} Bg7 {[%emt 0:01:30]} 9. Nc3 {[%emt 0:00:30]} h6 {[%emt 0:11:30]} 10. Bh4 {[%emt 0:01:30]} d5 {[%emt 0:02:30]} 11. exd6 {[%emt 0:00:30]} Bxc3+ {[%emt 0:03:30]} 12. bxc3 {[%emt 0:00:30]} Qxd6 {[%emt 0:00:30]} 13. Bb5 {[%emt 0:04:30]} Bf5 {[%emt 0:03:30]} 14. Qe2 {[%emt 0:07:30]} O-O {[%emt 0:05:30]} 15. O-O {[%emt 0:00:30]} Nd5 {[%emt 0:10:30]} 16. Qd2 {[%emt 0:04:30]} g5 {[%emt 0:07:30]} 17. Bg3 {[%emt 0:01:30]} Qc5 {[%emt 0:02:30]} 18. c4 {[%emt 0:00:30]} Ndb4 {[%emt 0:02:30]} 19. c3 {[%emt 0:06:30]} Nc2 {[%emt 0:08:30]} 20. Rad1 {[%emt 0:03:30]} Rad8 {[%emt 0:01:30]} 21. Qc1 {[%emt 0:01:30]} f6 {[%emt 0:06:30]} 22. Ba4 {[%emt 0:01:30]} Na3 {[%emt 0:03:30]} 23. Nd4 {[%emt 0:00:30]} Nxc4 {[%emt 0:04:30]} 24. Nxf5 {[%emt 0:01:30]} Qxf5 {[%emt 0:03:30]} 25. Bc2 {[%emt 0:00:30]} Qc5 {[%emt 0:00:38]} 26. Qb1 {[%emt 0:00:30]} f5 {[%emt 0:02:31]} 27. Bc7 {[%emt 0:00:00]} Nd2 {[%emt 0:04:08]} 28. Qxb7 {[%emt 0:07:00]} Rd7 {[%emt 0:04:40]} 29. Bb3+ {[%emt 0:01:30]} Kh7 {[%emt 0:01:01]} 30. Ba4 {[%emt 0:06:30]} Na5 {[%emt 0:05:48]} 31. Qb5 {[%emt 0:00:30]} Qxb5 {[%emt 0:02:16]} 32. Bxb5 {[%emt 0:00:30]} Rxc7 {[%emt 0:00:40]} 33. Rxd2 {[%emt 0:00:00]} Rc5 {[%emt 0:00:58]} 34. a4 {[%emt 0:00:00]} Kg6 {[%emt 0:01:25]} 35. Rd7 {[%emt 0:00:00]} e5 {[%emt 0:00:53]} 36. Rxa7 {[%emt 0:00:00]} Nb3 {[%emt 0:00:09]} 37. Rd1 {[%emt 0:00:30]} Rxc3 {[%emt 0:00:41]} 38. Rd6+ {[%emt 0:00:30]} Kh5 {[%emt 0:00:33]} 39. h3 {[%emt 0:01:30]} Rh8 {[%emt 0:00:31]} 40. Raa6 {[%emt 0:00:30]} Rcc8 {[%emt 0:00:48]} 41. Be2+ {[%emt 0:00:30]} g4 {[%emt 0:00:00]} 42. Rg6 {[%emt 0:00:30]} Nd2 {[%emt 0:01:09]} 43. hxg4+ {[%emt 0:00:30]} Kh4 {[%emt 0:00:04]} 44. Kh2 {[%emt 0:00:30]} 1-0

[Event "2nd Turkish League 2017"]
[Site "Konya"]
[Date "2017.07.21"]
[Round "7"]
[White "Demirag, Batuhan"]
[Black "Ataman, Alper Efe"]
[Result "1/2-1/2"]
[ECO "A11"]
[WhiteElo "1914"]
[BlackElo "2175"]
[Annotator "NA"]
[PlyCount "67"]
[EventType "team-tourn"]
[EventCountry "TUR"]
[SourceTitle "playchess.com"]
[Source "ChessBase"]
[SourceQuality "1"]
[TimeControl "5400+30"]

1. Nf3 {[%emt 0:00:30]} Nf6 {[%emt 0:01:00]} 2. c4 {[%emt 0:00:00]} g6 {[%emt 0:00:30]} 3. b3 {[%emt 0:00:00]} Bg7 {[%emt 0:00:30]} 4. Bb2 {[%emt 0:00:00]} O-O {[%emt 0:01:30]} 5. g3 {[%emt 0:00:00]} c6 {[%emt 0:02:30]} 6. Bg2 {[%emt 0:00:30]} d5 {[%emt 0:00:30]} 7. O-O {[%emt 0:00:30]} Nbd7 {[%emt 0:01:30]} 8. e3 {[%emt 0:01:30]} Re8 {[%emt 0:02:30]} 9. d4 {[%emt 0:00:30]} Ne4 {[%emt 0:01:30] LiveBook: 4 Games} 10. Qe2 {[%emt 0:03:30]} a5 {[%emt 0:04:30]} 11. Nc3 {[%emt 0:02:30]} Nxc3 {[%emt 0:02:30]} 12. Bxc3 $11 {[%emt 0:01:30]} e6 {[%emt 0:04:30]} 13. Rfd1 {[%emt 0:03:30]} b6 {[%emt 0:06:30]} 14. Rac1 {[%emt 0:02:30]} Ba6 {[%emt 0:01:30]} 15. Bb2 {[%emt 0:02:30]} Qb8 {[%emt 0:04:30]} 16. Qc2 {[%emt 0:04:30]} Rc8 {[%emt 0:01:30]} 17. e4 {[%emt 0:00:30]} Bb7 {[%emt 0:08:30]} 18. Qe2 {[%emt 0:12:30]} Nf6 {[%emt 0:08:30]} 19. e5 {[%emt 0:08:30]} Ne8 {[%emt 0:05:30]} 20. h4 {[%emt 0:06:30]} a4 {[%emt 0:01:30]} 21. Rc2 {[%emt 0:04:30]} axb3 {[%emt 0:01:30]} 22. axb3 {[%emt 0:00:30]} c5 {[%emt 0:01:30]} 23. h5 {[%emt 0:09:30]} Rd8 {[%emt 0:12:30]} 24. hxg6 {[%emt 0:00:30]} hxg6 {[%emt 0:00:00]} 25. Qe3 {[%emt 0:06:30]} dxc4 {[%emt 0:03:00]} 26. bxc4 {[%emt 0:00:30]} Nc7 {[%emt 0:01:30]} 27. Qf4 {[%emt 0:05:30]} Bxf3 {[%emt 0:02:30]} 28. Bxf3 {[%emt 0:00:00]} Ra4 {[%emt 0:00:30]} 29. Qc1 {[%emt 0:06:29]} cxd4 {[%emt 0:01:00]} 30. Bxd4 {[%emt 0:00:25]} b5 {[%emt 0:01:55]} 31. Kg2 {[%emt 0:03:52]} Rxc4 {[%emt 0:02:44]} 32. Rxc4 {[%emt 0:00:30]} bxc4 {[%emt 0:00:30]} 33. Qxc4 {[%emt 0:00:00]} Nd5 {[%emt 0:00:05]} 34. Qe2 {[%emt 0:01:03]} 1/2-1/2

[Event "2nd Turkish League 2017"]
[Site "Konya"]
[Date "2017.07.21"]
[Round "7"]
[White "Ugur, Can Atakan"]
[Black "Turkmen, Huseyin Nafizhan"]
[Result "1-0"]
[ECO "A48"]
[WhiteElo "1889"]
[BlackElo "1817"]
[Annotator "NA"]
[PlyCount "133"]
[EventType "team-tourn"]
[EventCountry "TUR"]
[SourceTitle "playchess.com"]
[Source "ChessBase"]
[SourceQuality "1"]
[TimeControl "5400+30"]

1. e3 {[%emt 0:00:30]} Nf6 {[%emt 0:01:00]} 2. b3 {[%emt 0:00:00]} g6 {[%emt 0:01:30]} 3. Bb2 {[%emt 0:00:00]} Bg7 {[%emt 0:03:30]} 4. Nf3 {[%emt 0:01:30]} d6 {[%emt 0:01:30]} 5. d4 {[%emt 0:01:30]} O-O {[%emt 0:00:00]} 6. Bd3 $11 {[%emt 0:03:30] LiveBook: 6 Games} a6 {[%emt 0:05:00]} 7. c4 {[%emt 0:07:30]} Nbd7 {[%emt 0:04:30]} 8. O-O {[%emt 0:05:30]} Re8 {[%emt 0:02:30]} 9. Qc2 {[%emt 0:02:30]} e5 {[%emt 0:03:30]} 10. Nbd2 {[%emt 0:00:30]} Qe7 {[%emt 0:03:30]} 11. dxe5 {[%emt 0:13:30]} dxe5 {[%emt 0:02:30]} 12. e4 {[%emt 0:11:30]} Nh5 {[%emt 0:15:30]} 13. Rfe1 {[%emt 0:00:30]} g5 {[%emt 0:11:30]} 14. g3 {[%emt 0:10:30]} Nf8 {[%emt 0:00:30]} 15. Nf1 {[%emt 0:03:30]} Ng6 {[%emt 0:11:30]} 16. Ne3 {[%emt 0:02:30]} g4 {[%emt 0:01:30]} 17. Nd2 {[%emt 0:01:30]} Qg5 {[%emt 0:00:30]} 18. Nd5 {[%emt 0:06:30]} Qd8 {[%emt 0:06:30]} 19. c5 {[%emt 0:01:30]} Be6 {[%emt 0:03:30]} 20. Nf1 {[%emt 0:09:39]} Nf6 {[%emt 0:06:08]} 21. Nfe3 {[%emt 0:02:25]} Bxd5 {[%emt 0:08:38]} 22. Nxd5 {[%emt 0:00:15]} h5 {[%emt 0:01:31]} 23. Rad1 {[%emt 0:05:04]} Nh7 {[%emt 0:00:47]} 24. Bc1 {[%emt 0:00:27]} Rc8 {[%emt 0:00:49]} 25. Bc4 {[%emt 0:05:50]} Ng5 {[%emt 0:02:09]} 26. Bxg5 {[%emt 0:00:27]} Qxg5 {[%emt 0:00:00]} 27. Qd2 {[%emt 0:00:18]} Qxd2 {[%emt 0:02:04]} 28. Rxd2 {[%emt 0:00:30]} Nf8 {[%emt 0:00:00]} 29. Ne3 {[%emt 0:00:49]} Bh6 {[%emt 0:00:32]} 30. Red1 {[%emt 0:00:48]} Bxe3 {[%emt 0:01:35]} 31. fxe3 {[%emt 0:00:02]} Nh7 {[%emt 0:00:55]} 32. Rd7 {[%emt 0:01:11]} Ng5 {[%emt 0:00:09]} 33. Rf1 {[%emt 0:00:22]} Rf8 {[%emt 0:00:54]} 34. Rf5 {[%emt 0:00:26]} Nf3+ {[%emt 0:00:29]} 35. Kg2 {[%emt 0:01:18]} Rcd8 {[%emt 0:00:30]} 36. Rfxf7 {[%emt 0:01:45]} Ne1+ {[%emt 0:01:03]} 37. Kg1 {[%emt 0:00:30]} Rxd7 {[%emt 0:00:30]} 38. Rxd7+ {[%emt 0:00:30]} Kh8 {[%emt 0:00:00]} 39. Rxc7 {[%emt 0:01:00]} Nf3+ {[%emt 0:00:49]} 40. Kh1 {[%emt 0:00:17]} Ng5 {[%emt 0:00:13]} 41. Kg2 {[%emt 0:01:07]} Nxe4 {[%emt 0:00:21]} 42. Rf7 {[%emt 0:00:32]} Rd8 {[%emt 0:00:49]} 43. Rxb7 {[%emt 0:00:25]} Nxc5 {[%emt 0:00:18]} 44. Re7 {[%emt 0:00:48]} Rd2+ {[%emt 0:00:38]} 45. Kg1 {[%emt 0:00:19]} e4 {[%emt 0:00:37]} 46. Re5 {[%emt 0:00:40]} Nd3 {[%emt 0:00:14]} 47. Rxe4 {[%emt 0:00:40]} Nf2 {[%emt 0:00:36]} 48. Re8+ {[%emt 0:00:21]} Kg7 {[%emt 0:00:21]} 49. Re7+ {[%emt 0:00:12]} Kg6 {[%emt 0:00:13]} 50. Bf1 {[%emt 0:00:52]} Kf6 {[%emt 0:00:50]} 51. Ra7 {[%emt 0:00:09]} Nd1 {[%emt 0:00:34]} 52. Rxa6+ {[%emt 0:00:42]} Ke5 {[%emt 0:00:20]} 53. Ra5+ {[%emt 0:00:24]} Ke4 {[%emt 0:00:10]} 54. Bg2+ {[%emt 0:00:07]} Kxe3 {[%emt 0:01:07]} 55. Re5+ {[%emt 0:00:30]} Kd4 {[%emt 0:00:03]} 56. Rd5+ {[%emt 0:00:09]} Kc3 {[%emt 0:00:30]} 57. Rxd2 {[%emt 0:00:30]} Kxd2 {[%emt 0:00:00]} 58. Bc6 {[%emt 0:00:12]} Kc3 {[%emt 0:00:13]} 59. Be8 {[%emt 0:00:09]} Kb2 {[%emt 0:01:26]} 60. Bxh5 {[%emt 0:00:07]} Kxa2 {[%emt 0:01:08]} 61. Bxg4 {[%emt 0:00:30]} Nc3 {[%emt 0:00:30]} 62. Be6 {[%emt 0:00:00]} Ka3 {[%emt 0:00:03]} 63. h4 {[%emt 0:00:00]} Ne4 {[%emt 0:00:23]} 64. Kg2 {[%emt 0:00:29]} Kb4 {[%emt 0:00:30]} 65. h5 {[%emt 0:00:01]} Nf6 {[%emt 0:00:00]} 66. h6 {[%emt 0:00:30]} Kc5 {[%emt 0:00:00]} 67. Bf5 {[%emt 0:00:00]} 1-0

[Event "2nd Turkish League 2017"]
[Site "Konya"]
[Date "2017.07.21"]
[Round "7"]
[White "Acar, Utku Cengiz"]
[Black "Yakar, Ozan Tuna"]
[Result "1-0"]
[ECO "B95"]
[WhiteElo "1863"]
[BlackElo "1718"]
[Annotator "NA"]
[PlyCount "115"]
[EventType "team-tourn"]
[EventCountry "TUR"]
[SourceTitle "playchess.com"]
[Source "ChessBase"]
[SourceQuality "1"]
[TimeControl "5400+30"]

1. e4 {[%emt 0:00:30]} c5 {[%emt 0:01:00]} 2. Nf3 {[%emt 0:00:00]} d6 {[%emt 0:00:30]} 3. d4 {[%emt 0:00:00]} cxd4 {[%emt 0:00:30]} 4. Nxd4 {[%emt 0:00:30]} Nf6 {[%emt 0:00:30]} 5. Nc3 {[%emt 0:00:30]} a6 {[%emt 0:00:00]} 6. Bg5 {[%emt 0:00:00]} e6 {[%emt 0:02:00]} 7. Qe2 {[%emt 0:01:00]} Nc6 {[%emt 0:07:30]} 8. O-O-O $14 {[%emt 0:16:30] LiveBook: 3 Games} Nxd4 {[%emt 0:08:30]} 9. Rxd4 {[%emt 0:00:30]} Qb6 {[%emt 0:04:30]} 10. Be3 {[%emt 0:04:30]} Qa5 {[%emt 0:14:30]} 11. g4 {[%emt 0:15:30]} b5 {[%emt 0:18:30]} 12. g5 {[%emt 0:05:30]} b4 {[%emt 0:07:30]} 13. Nb1 {[%emt 0:02:30]} e5 {[%emt 0:07:30]} 14. Rc4 {[%emt 0:10:30]} d5 {[%emt 0:05:30]} 15. Rxc8+ {[%emt 0:10:30]} Rxc8 {[%emt 0:00:40]} 16. gxf6 {[%emt 0:00:30]} d4 {[%emt 0:01:52]} 17. Qxa6 {[%emt 0:07:30]} Rc5 {[%emt 0:08:22]} 18. fxg7 {[%emt 0:05:30]} Bxg7 {[%emt 0:01:30]} 19. Bd2 {[%emt 0:00:16]} Qxa6 {[%emt 0:07:26]} 20. Bxa6 {[%emt 0:00:33]} Ra5 {[%emt 0:00:23]} 21. Bc4 {[%emt 0:00:19]} Bf8 {[%emt 0:00:12]} 22. Kd1 {[%emt 0:06:09]} Rg8 {[%emt 0:01:14]} 23. Ke2 {[%emt 0:00:44]} Ra8 {[%emt 0:01:11]} 24. Be1 {[%emt 0:02:12]} Rg4 {[%emt 0:00:37]} 25. Nd2 {[%emt 0:02:54]} Bh6 {[%emt 0:00:27]} 26. Bd5 {[%emt 0:00:32]} Rb8 {[%emt 0:00:24]} 27. Nc4 {[%emt 0:03:07]} f6 {[%emt 0:00:15]} 28. h3 {[%emt 0:00:27]} Rg2 {[%emt 0:00:37]} 29. Kf3 {[%emt 0:00:18]} Rg6 {[%emt 0:00:22]} 30. Bd2 {[%emt 0:02:09]} Bf8 {[%emt 0:00:28]} 31. a3 {[%emt 0:01:03]} Rg7 {[%emt 0:01:25]} 32. axb4 {[%emt 0:00:28]} Bxb4 {[%emt 0:00:14]} 33. Bxb4 {[%emt 0:00:30]} Rxb4 {[%emt 0:00:30]} 34. Ra1 {[%emt 0:00:00]} Rd7 {[%emt 0:00:47]} 35. b3 {[%emt 0:00:13]} Kf8 {[%emt 0:00:30]} 36. Ra8+ {[%emt 0:00:30]} Kg7 {[%emt 0:00:00]} 37. Kg4 {[%emt 0:02:26]} Kg6 {[%emt 0:00:00]} 38. Rg8+ {[%emt 0:01:25]} Rg7 {[%emt 0:00:45]} 39. Rxg7+ {[%emt 0:00:30]} Kxg7 {[%emt 0:00:04]} 40. Nb2 {[%emt 0:00:22]} Kg6 {[%emt 0:00:27]} 41. Nd3 {[%emt 0:00:28]} Rb8 {[%emt 0:00:13]} 42. b4 {[%emt 0:00:25]} h6 {[%emt 0:01:28]} 43. h4 {[%emt 0:00:49]} h5+ {[%emt 0:00:30]} 44. Kf3 {[%emt 0:00:00]} Rb6 {[%emt 0:00:08]} 45. Ke2 {[%emt 0:00:46]} Rb8 {[%emt 0:00:25]} 46. Bc6 {[%emt 0:00:20]} Kf7 {[%emt 0:00:42]} 47. b5 {[%emt 0:00:09]} Ke7 {[%emt 0:00:00]} 48. Nb4 {[%emt 0:00:29]} Kd6 {[%emt 0:00:51]} 49. Nd5 {[%emt 0:00:30]} Rf8 {[%emt 0:00:00]} 50. Bb7 {[%emt 0:00:46]} f5 {[%emt 0:00:52]} 51. f3 {[%emt 0:00:11]} fxe4 {[%emt 0:00:30]} 52. fxe4 {[%emt 0:00:04]} Rg8 {[%emt 0:00:39]} 53. b6 {[%emt 0:00:09]} Rg4 {[%emt 0:01:16]} 54. Bc8 {[%emt 0:00:33]} Rxe4+ {[%emt 0:00:10]} 55. Kd2 {[%emt 0:00:33]} Rxh4 {[%emt 0:00:51]} 56. b7 {[%emt 0:00:12]} Rh2+ {[%emt 0:00:00]} 57. Kc1 {[%emt 0:00:29]} Rh1+ {[%emt 0:00:44]} 58. Kb2 {[%emt 0:00:04]} 1-0